[Event "*** Titled Tuesday Blitz"]
[Site "Chess.com"]
[Date "2020.04.14"]
[Round "9"]
[White "fmshawnrl123"]
[Black "ElHelvetico"]
[Result "0-1"]
[WhiteElo "2759"]
[BlackElo "2633"]
[TimeControl "180+1"]
[EndTime "11:43:03 PDT"]
[Termination "ElHelvetico won by resignation"]

1. c4 {[%clk 0:03:00.9]} 1... f5 {[%clk 0:02:58.7]} 2. g3 {[%clk 0:02:55.5]}
2... Nf6 {[%clk 0:02:58.6]} 3. Bg2 {[%clk 0:02:56.1]} 3... g6 {[%clk 0:02:58]}
4. d3 {[%clk 0:02:56.6]} 4... Bg7 {[%clk 0:02:57.9]} 5. e4 {[%clk 0:02:57.3]}
5... fxe4 {[%clk 0:02:52]} 6. dxe4 {[%clk 0:02:58.2]} 6... d6 {[%clk 0:02:50.3]}
7. Nc3 {[%clk 0:02:56.3]} 7... O-O {[%clk 0:02:48.9]} 8. Nf3 {[%clk 0:02:54.1]}
8... c5 {[%clk 0:02:47]} 9. O-O {[%clk 0:02:53.6]} 9... Nc6 {[%clk 0:02:47.6]}
10. h3 {[%clk 0:02:52]} 10... e5 {[%clk 0:02:38.6]} 11. Bg5 {[%clk 0:02:43.7]}
11... Be6 {[%clk 0:02:25.7]} 12. Nd5 {[%clk 0:02:41.9]} 12... Bxd5 {[%clk
0:02:25]} 13. exd5 {[%clk 0:02:36]} 13... Nd4 {[%clk 0:02:24.6]} 14. Nxd4 {[%clk
0:02:35.8]} 14... cxd4 {[%clk 0:02:21.2]} 15. Qd3 {[%clk 0:02:30.6]} 15... Qb6
{[%clk 0:02:13.3]} 16. b3 {[%clk 0:02:28.4]} 16... Nd7 {[%clk 0:02:09]} 17. Rae1
{[%clk 0:02:23.4]} 17... Nc5 {[%clk 0:02:07.3]} 18. Qd2 {[%clk 0:02:23.1]} 18...
Rae8 {[%clk 0:02:02.2]} 19. Be4 {[%clk 0:02:20.4]} 19... a5 {[%clk 0:01:38.5]}
20. h4 {[%clk 0:02:17.8]} 20... Qb4 {[%clk 0:01:34.7]} 21. Qc1 {[%clk
0:01:57.5]} 21... Nxe4 {[%clk 0:01:24.2]} 22. Rxe4 {[%clk 0:01:58.4]} 22... Rf3
{[%clk 0:01:24.4]} 23. Bd2 {[%clk 0:01:46.9]} 23... Qc5 {[%clk 0:01:24.3]} 24.
h5 {[%clk 0:01:28.8]} 24... Ref8 {[%clk 0:01:19.5]} 25. h6 {[%clk 0:01:27.1]}
25... Bh8 {[%clk 0:01:15.4]} 26. Kg2 {[%clk 0:01:27.6]} 26... a4 {[%clk
0:01:09.6]} 27. b4 {[%clk 0:01:26.2]} 27... Qc8 {[%clk 0:01:09.7]} 28. Qd1
{[%clk 0:00:52.7]} 28... Qxc4 {[%clk 0:01:09]} 29. Bf4 {[%clk 0:00:37.7]} 29...
Rd3 {[%clk 0:01:04.3]} 30. Qe2 {[%clk 0:00:32.6]} 30... exf4 {[%clk 0:01:00.2]}
31. gxf4 {[%clk 0:00:26.3]} 31... Rc3 {[%clk 0:00:53.3]} 32. Qg4 {[%clk
0:00:19.4]} 32... Qxd5 {[%clk 0:00:52.5]} 33. Re1 {[%clk 0:00:17.8]} 33... Re3
{[%clk 0:00:40.1]} 34. f3 {[%clk 0:00:11.1]} 34... Rxe1 {[%clk 0:00:33]} 35.
Rxe1 {[%clk 0:00:12]} 35... d3 {[%clk 0:00:31.7]} 36. Qd7 {[%clk 0:00:11.7]}
36... Bf6 {[%clk 0:00:15.6]} 37. Re7 {[%clk 0:00:09.9]} 37... Bxe7 {[%clk
0:00:14.7]} 38. Qxe7 {[%clk 0:00:10.8]} 38... Qf7 {[%clk 0:00:12.4]} 39. Qxd6
{[%clk 0:00:10]} 39... Qxa2+ {[%clk 0:00:12.4]} 40. Kg3 {[%clk 0:00:09.4]} 40...
d2 {[%clk 0:00:12.8]} 41. Qd4 {[%clk 0:00:07.5]} 41... Qf7 {[%clk 0:00:11.7]}
42. Qxd2 {[%clk 0:00:07.2]} 42... Qxf4+ {[%clk 0:00:08.2]} 43. Qxf4 {[%clk
0:00:08.1]} 43... Rxf4 {[%clk 0:00:08.8]} 0-1

[Event "*** Titled Tuesday Blitz"]
[Site "Chess.com"]
[Date "2020.04.14"]
[Round "9"]
[White "PavelChernomordik"]
[Black "northridgehawk"]
[Result "0-1"]
[WhiteElo "2414"]
[BlackElo "2302"]
[TimeControl "180+1"]
[EndTime "11:43:03 PDT"]
[Termination "northridgehawk won by resignation"]

1. e4 {[%clk 0:03:00.9]} 1... e5 {[%clk 0:02:59.1]} 2. Nf3 {[%clk 0:02:59]} 2...
Nc6 {[%clk 0:02:58.6]} 3. Bb5 {[%clk 0:02:58.2]} 3... a6 {[%clk 0:02:57.9]} 4.
Ba4 {[%clk 0:02:57.3]} 4... Nf6 {[%clk 0:02:58.2]} 5. Qe2 {[%clk 0:02:56.2]}
5... b5 {[%clk 0:02:57.7]} 6. Bb3 {[%clk 0:02:55.4]} 6... Bc5 {[%clk 0:02:56.6]}
7. a4 {[%clk 0:02:54.4]} 7... Rb8 {[%clk 0:02:55.4]} 8. axb5 {[%clk 0:02:53]}
8... axb5 {[%clk 0:02:56.3]} 9. d3 {[%clk 0:02:53]} 9... O-O {[%clk 0:02:55.7]}
10. Bg5 {[%clk 0:02:51]} 10... h6 {[%clk 0:02:54.2]} 11. Bh4 {[%clk 0:02:49.8]}
11... d6 {[%clk 0:02:37.3]} 12. h3 {[%clk 0:02:47]} 12... Be6 {[%clk 0:02:34.6]}
13. Nbd2 {[%clk 0:02:44.8]} 13... Re8 {[%clk 0:02:27.6]} 14. O-O {[%clk
0:02:43.2]} 14... g5 {[%clk 0:02:23.4]} 15. Bg3 {[%clk 0:02:41.2]} 15... Nh5
{[%clk 0:02:23.5]} 16. Bh2 {[%clk 0:02:30.6]} 16... Qf6 {[%clk 0:02:22.6]} 17.
Nxe5 {[%clk 0:02:15]} 17... Nxe5 {[%clk 0:02:21.4]} 18. Qxh5 {[%clk 0:02:13.4]}
18... Kg7 {[%clk 0:02:09.7]} 19. Kh1 {[%clk 0:02:09.8]} 19... Ng6 {[%clk
0:02:02.6]} 20. c3 {[%clk 0:02:04]} 20... Ra8 {[%clk 0:01:59.7]} 21. d4 {[%clk
0:02:00.6]} 21... Rxa1 {[%clk 0:01:50.4]} 22. Rxa1 {[%clk 0:01:56.1]} 22... Qxf2
{[%clk 0:01:50.5]} 23. Bxe6 {[%clk 0:01:42.7]} 23... Rxe6 {[%clk 0:01:40.5]} 24.
Nf3 {[%clk 0:01:37.6]} 24... Bb6 {[%clk 0:01:32.4]} 25. Re1 {[%clk 0:01:28.5]}
25... f5 {[%clk 0:01:23.3]} 26. Bg1 {[%clk 0:01:24.8]} 26... Qxg2+ {[%clk
0:01:07.5]} 27. Kxg2 {[%clk 0:01:22.5]} 27... Nf4+ {[%clk 0:01:08.4]} 28. Kh2
{[%clk 0:01:16.9]} 28... Nxh5 {[%clk 0:01:08.7]} 29. exf5 {[%clk 0:01:16]} 29...
Rxe1 {[%clk 0:01:09.6]} 30. Nxe1 {[%clk 0:01:14.5]} 30... Kf6 {[%clk 0:01:10.2]}
31. Kg2 {[%clk 0:01:09.9]} 31... Kxf5 {[%clk 0:01:10]} 32. Kf3 {[%clk
0:01:09.5]} 32... Nf4 {[%clk 0:01:08.6]} 33. Be3 {[%clk 0:01:04.9]} 33... Nxh3
{[%clk 0:01:08.1]} 34. Nd3 {[%clk 0:01:01.8]} 34... g4+ {[%clk 0:01:07.1]} 35.
Ke2 {[%clk 0:00:58.8]} 35... Ng5 {[%clk 0:01:03.8]} 36. Nb4 {[%clk 0:00:55.2]}
36... Ke4 {[%clk 0:00:49.1]} 37. Nd3 {[%clk 0:00:47.6]} 37... g3 {[%clk
0:00:47.9]} 38. Ne1 {[%clk 0:00:40.1]} 38... c5 {[%clk 0:00:44]} 39. Bxg5 {[%clk
0:00:32.4]} 39... hxg5 {[%clk 0:00:43.3]} 40. Nf3 {[%clk 0:00:32.8]} 40... g4
{[%clk 0:00:40.9]} 41. Nd2+ {[%clk 0:00:31.8]} 41... Kf4 {[%clk 0:00:40.1]} 42.
d5 {[%clk 0:00:30.7]} 42... c4 {[%clk 0:00:39.8]} 43. Kf1 {[%clk 0:00:22]} 43...
Be3 {[%clk 0:00:32.4]} 44. Nb1 {[%clk 0:00:19.4]} 44... Kf3 {[%clk 0:00:32.3]}
0-1

[Event "*** Titled Tuesday Blitz"]
[Site "Chess.com"]
[Date "2020.04.14"]
[Round "9"]
[White "Savagelittlemole"]
[Black "KarstenHansch"]
[Result "1-0"]
[WhiteElo "2609"]
[BlackElo "2448"]
[TimeControl "180+1"]
[EndTime "11:43:04 PDT"]
[Termination "Savagelittlemole won by checkmate"]

1. e4 {[%clk 0:03:00.9]} 1... c6 {[%clk 0:02:59.9]} 2. d4 {[%clk 0:02:59.5]}
2... d5 {[%clk 0:03:00.8]} 3. e5 {[%clk 0:02:57.7]} 3... Bf5 {[%clk 0:03:00]} 4.
h4 {[%clk 0:02:56.2]} 4... h5 {[%clk 0:02:59.3]} 5. c4 {[%clk 0:02:55]} 5... e6
{[%clk 0:02:57.8]} 6. Nc3 {[%clk 0:02:55]} 6... dxc4 {[%clk 0:02:50.1]} 7. Bxc4
{[%clk 0:02:52.5]} 7... Nd7 {[%clk 0:02:49.8]} 8. Be2 {[%clk 0:02:49.2]} 8...
Nb6 {[%clk 0:02:48.7]} 9. Bxh5 {[%clk 0:02:46]} 9... Bb4 {[%clk 0:02:37.8]} 10.
a3 {[%clk 0:02:40.8]} 10... Bxc3+ {[%clk 0:02:36.9]} 11. bxc3 {[%clk 0:02:41.3]}
11... g6 {[%clk 0:02:30]} 12. Bg5 {[%clk 0:02:37.7]} 12... Qd5 {[%clk
0:02:29.2]} 13. Bf3 {[%clk 0:02:34.8]} 13... Qc4 {[%clk 0:02:29]} 14. Ne2 {[%clk
0:02:30.6]} 14... Nd5 {[%clk 0:02:14.4]} 15. O-O {[%clk 0:02:27.8]} 15... Nxc3
{[%clk 0:02:10.1]} 16. Nxc3 {[%clk 0:02:25.6]} 16... Qxc3 {[%clk 0:02:10.3]} 17.
Rc1 {[%clk 0:02:22.8]} 17... Qd3 {[%clk 0:02:08.4]} 18. Qa4 {[%clk 0:02:20.1]}
18... Kf8 {[%clk 0:01:24]} 19. d5 {[%clk 0:02:16.7]} 19... cxd5 {[%clk
0:01:20.8]} 20. Qb4+ {[%clk 0:02:14.5]} 20... Kg7 {[%clk 0:01:19.9]} 21. Rc7
{[%clk 0:02:13]} 21... Be4 {[%clk 0:01:12.8]} 22. Qxb7 {[%clk 0:02:06.7]} 22...
Rf8 {[%clk 0:01:10.6]} 23. Bxe4 {[%clk 0:01:57.5]} 23... Qxe4 {[%clk 0:01:10]}
24. Qxa7 {[%clk 0:01:41.8]} 24... Qxe5 {[%clk 0:01:09.3]} 25. g3 {[%clk
0:01:37.2]} 25... Nf6 {[%clk 0:01:05.6]} 26. Bf4 {[%clk 0:01:34.2]} 26... Qf5
{[%clk 0:01:02.9]} 27. Bd6 {[%clk 0:01:31.1]} 27... Ne4 {[%clk 0:00:48.6]} 28.
Bxf8+ {[%clk 0:01:28.6]} 28... Rxf8 {[%clk 0:00:49.5]} 29. Qd4+ {[%clk
0:01:26.2]} 29... Kg8 {[%clk 0:00:46.7]} 30. Kg2 {[%clk 0:01:25.1]} 30... Ra8
{[%clk 0:00:43.8]} 31. a4 {[%clk 0:01:22.9]} 31... e5 {[%clk 0:00:36.6]} 32.
Qxd5 {[%clk 0:01:20.5]} 32... Rxa4 {[%clk 0:00:35.9]} 33. Qd8+ {[%clk
0:01:18.2]} 33... Kh7 {[%clk 0:00:23.4]} 34. Rc8 {[%clk 0:01:15.7]} 34... Qf6
{[%clk 0:00:20.9]} 35. Qg8+ {[%clk 0:01:15]} 35... Kh6 {[%clk 0:00:20.2]} 36.
Rc7 {[%clk 0:01:08.3]} 36... Nd6 {[%clk 0:00:15.8]} 37. Rd7 {[%clk 0:01:04.9]}
37... Rd4 {[%clk 0:00:12.6]} 38. Rc1 {[%clk 0:00:43.2]} 38... e4 {[%clk
0:00:12.6]} 39. Qf8+ {[%clk 0:00:38.5]} 39... Kh7 {[%clk 0:00:12.4]} 40. Rd8
{[%clk 0:00:34.2]} 40... Qf3+ {[%clk 0:00:12]} 41. Kg1 {[%clk 0:00:31]} 41...
Qf6 {[%clk 0:00:11.4]} 42. Qg8+ {[%clk 0:00:28.5]} 42... Kh6 {[%clk 0:00:11.5]}
43. g4 {[%clk 0:00:27.5]} 43... g5 {[%clk 0:00:09.9]} 44. hxg5+ {[%clk
0:00:25.6]} 44... Qxg5 {[%clk 0:00:10.2]} 45. Qh8+ {[%clk 0:00:23.7]} 45... Kg6
{[%clk 0:00:10.1]} 46. Rg8# {[%clk 0:00:22.5]} 1-0

[Event "*** Titled Tuesday Blitz"]
[Site "Chess.com"]
[Date "2020.04.14"]
[Round "9"]
[White "Monmoransy"]
[Black "eCztery"]
[Result "1-0"]
[WhiteElo "2605"]
[BlackElo "2412"]
[TimeControl "180+1"]
[EndTime "11:43:04 PDT"]
[Termination "Monmoransy won by resignation"]

1. e4 {[%clk 0:03:00.9]} 1... c5 {[%clk 0:02:59.8]} 2. Nf3 {[%clk 0:03:00.8]}
2... Nc6 {[%clk 0:02:58.5]} 3. d4 {[%clk 0:03:00.6]} 3... cxd4 {[%clk
0:02:59.4]} 4. Nxd4 {[%clk 0:03:00.8]} 4... g6 {[%clk 0:02:54.7]} 5. c4 {[%clk
0:02:59.1]} 5... Nf6 {[%clk 0:02:53]} 6. Nc3 {[%clk 0:02:58]} 6... Nxd4 {[%clk
0:02:53.4]} 7. Qxd4 {[%clk 0:02:57.6]} 7... d6 {[%clk 0:02:52.3]} 8. Be3 {[%clk
0:02:53.9]} 8... Bg7 {[%clk 0:02:51]} 9. f3 {[%clk 0:02:54]} 9... O-O {[%clk
0:02:49.4]} 10. Qd2 {[%clk 0:02:54]} 10... a5 {[%clk 0:02:47.2]} 11. Be2 {[%clk
0:02:51.1]} 11... a4 {[%clk 0:02:43.6]} 12. Rc1 {[%clk 0:02:49.3]} 12... Qa5
{[%clk 0:02:37.1]} 13. Kf2 {[%clk 0:02:40.2]} 13... Be6 {[%clk 0:02:35.3]} 14.
Rhd1 {[%clk 0:02:36.9]} 14... Rfc8 {[%clk 0:02:31.7]} 15. Nd5 {[%clk 0:02:25.4]}
15... Qxd2 {[%clk 0:02:24.4]} 16. Rxd2 {[%clk 0:02:17.2]} 16... Bxd5 {[%clk
0:02:21.7]} 17. exd5 {[%clk 0:02:15.8]} 17... Nd7 {[%clk 0:02:15.6]} 18. Bd3
{[%clk 0:01:58.5]} 18... b5 {[%clk 0:02:12.4]} 19. Rdc2 {[%clk 0:01:49.6]} 19...
bxc4 {[%clk 0:02:11.4]} 20. Bxc4 {[%clk 0:01:43.7]} 20... Rxc4 {[%clk
0:02:03.3]} 21. Rxc4 {[%clk 0:01:42.3]} 21... Bxb2 {[%clk 0:02:04.2]} 22. Rc8+
{[%clk 0:01:39.8]} 22... Rxc8 {[%clk 0:02:02.7]} 23. Rxc8+ {[%clk 0:01:39.5]}
23... Kg7 {[%clk 0:02:03.6]} 24. Rc7 {[%clk 0:01:32.9]} 24... Nf6 {[%clk
0:02:01.9]} 25. Rxe7 {[%clk 0:01:24]} 25... Nxd5 {[%clk 0:02:01.8]} 26. Ra7
{[%clk 0:01:20.1]} 26... a3 {[%clk 0:01:57.5]} 27. Ra4 {[%clk 0:01:10]} 27...
Nc3 {[%clk 0:01:52.2]} 28. Bd4+ {[%clk 0:01:07.9]} 28... f6 {[%clk 0:01:51]} 29.
Ra7+ {[%clk 0:01:02.3]} 29... Kh6 {[%clk 0:01:49]} 30. Bxc3 {[%clk 0:01:01.3]}
30... Bxc3 {[%clk 0:01:49.9]} 31. Rxa3 {[%clk 0:01:00.9]} 31... Be5 {[%clk
0:01:46.6]} 32. g3 {[%clk 0:00:59.1]} 32... d5 {[%clk 0:01:40.8]} 33. Ke3 {[%clk
0:00:52.7]} 33... g5 {[%clk 0:01:34.8]} 34. Ra7 {[%clk 0:00:47.9]} 34... Kg6
{[%clk 0:01:31.1]} 35. a4 {[%clk 0:00:46.9]} 35... h5 {[%clk 0:01:30]} 36. a5
{[%clk 0:00:46]} 36... h4 {[%clk 0:01:30.9]} 37. gxh4 {[%clk 0:00:41.2]} 37...
Bxh2 {[%clk 0:01:31.8]} 38. h5+ {[%clk 0:00:35.5]} 38... Kf5 {[%clk 0:01:29.2]}
39. Ke2 {[%clk 0:00:30.5]} 39... g4 {[%clk 0:01:24.7]} 40. fxg4+ {[%clk
0:00:29.8]} 40... Kxg4 {[%clk 0:01:25.6]} 41. h6 {[%clk 0:00:30.2]} 41... Be5
{[%clk 0:01:14.8]} 42. Rg7+ {[%clk 0:00:25]} 42... Kf4 {[%clk 0:01:11.1]} 43. h7
{[%clk 0:00:24.6]} 43... f5 {[%clk 0:01:12]} 44. Rg8 {[%clk 0:00:23.8]} 44...
Ke4 {[%clk 0:00:53.4]} 45. h8=Q {[%clk 0:00:21.6]} 45... Bxh8 {[%clk 0:00:52.4]}
46. Rxh8 {[%clk 0:00:21.6]} 46... d4 {[%clk 0:00:53.3]} 47. Re8+ {[%clk
0:00:21.1]} 47... Kf4 {[%clk 0:00:53.3]} 48. Kd3 {[%clk 0:00:20.7]} 48... Kg3
{[%clk 0:00:45.2]} 49. a6 {[%clk 0:00:20.1]} 49... f4 {[%clk 0:00:46.1]} 50.
Rg8+ {[%clk 0:00:20]} 50... Kf2 {[%clk 0:00:25.7]} 1-0

[Event "*** Titled Tuesday Blitz"]
[Site "Chess.com"]
[Date "2020.04.14"]
[Round "9"]
[White "Danfii"]
[Black "tgpgoat"]
[Result "1-0"]
[WhiteElo "2307"]
[BlackElo "2108"]
[TimeControl "180+1"]
[EndTime "11:43:05 PDT"]
[Termination "Danfii won on time"]

1. e4 {[%clk 0:03:00.9]} 1... c5 {[%clk 0:02:59.7]} 2. Nf3 {[%clk 0:03:00.7]}
2... Nc6 {[%clk 0:02:59.2]} 3. d4 {[%clk 0:03:01]} 3... cxd4 {[%clk 0:02:59.4]}
4. Nxd4 {[%clk 0:03:01.9]} 4... e5 {[%clk 0:03:00.3]} 5. Nb5 {[%clk 0:03:01.8]}
5... d6 {[%clk 0:03:00.6]} 6. N1c3 {[%clk 0:03:01.8]} 6... a6 {[%clk 0:03:00.9]}
7. Na3 {[%clk 0:03:02.3]} 7... b5 {[%clk 0:03:01.6]} 8. Nd5 {[%clk 0:03:02.3]}
8... Nf6 {[%clk 0:03:01]} 9. Bg5 {[%clk 0:03:02]} 9... Be7 {[%clk 0:03:01.3]}
10. Bxf6 {[%clk 0:03:02.3]} 10... Bxf6 {[%clk 0:03:01.2]} 11. c4 {[%clk
0:03:02.8]} 11... b4 {[%clk 0:02:33]} 12. Nc2 {[%clk 0:03:02.5]} 12... a5 {[%clk
0:02:28.1]} 13. Qf3 {[%clk 0:03:02.4]} 13... Bg5 {[%clk 0:02:17.1]} 14. h4
{[%clk 0:03:02.2]} 14... Be7 {[%clk 0:02:09.3]} 15. g3 {[%clk 0:02:49.5]} 15...
O-O {[%clk 0:02:06]} 16. Bh3 {[%clk 0:02:48.1]} 16... Be6 {[%clk 0:01:58.1]} 17.
Rd1 {[%clk 0:02:43.7]} 17... a4 {[%clk 0:01:19.9]} 18. b3 {[%clk 0:02:43.4]}
18... axb3 {[%clk 0:01:19.6]} 19. axb3 {[%clk 0:02:44.3]} 19... Qb8 {[%clk
0:01:16.3]} 20. Kf1 {[%clk 0:02:29.9]} 20... Bd8 {[%clk 0:01:13.9]} 21. Kg2
{[%clk 0:02:28.2]} 21... Ra2 {[%clk 0:01:12.8]} 22. Qd3 {[%clk 0:02:27.1]} 22...
Bxh3+ {[%clk 0:01:01.2]} 23. Kxh3 {[%clk 0:02:23.1]} 23... Qc8+ {[%clk
0:00:59.7]} 24. Kg2 {[%clk 0:02:23.3]} 24... f5 {[%clk 0:00:57.4]} 25. Nde3
{[%clk 0:02:17.4]} 25... fxe4 {[%clk 0:00:53.9]} 26. Qxd6 {[%clk 0:02:06.2]}
26... Nd4 {[%clk 0:00:49.2]} 27. Qd5+ {[%clk 0:01:57.4]} 27... Kh8 {[%clk
0:00:48.4]} 28. Qxe4 {[%clk 0:01:54.6]} 28... Bb6 {[%clk 0:00:42.5]} 29. Rhf1
{[%clk 0:01:45.1]} 29... Qc7 {[%clk 0:00:24.5]} 30. Nxb4 {[%clk 0:01:33.7]}
30... Re2 {[%clk 0:00:23.4]} 31. Nbd5 {[%clk 0:01:30.8]} 31... Qa7 {[%clk
0:00:17.8]} 32. Nxb6 {[%clk 0:01:30.5]} 32... Qxb6 {[%clk 0:00:18.7]} 33. Qxe5
{[%clk 0:01:26.2]} 33... Nc2 {[%clk 0:00:17.8]} 34. Rd3 {[%clk 0:01:06.8]} 34...
Nxe3+ {[%clk 0:00:05.8]} 35. Rxe3 {[%clk 0:01:07.7]} 35... Rxe3 {[%clk 0:00:04]}
36. Qxe3 {[%clk 0:01:07.7]} 36... Qb7+ {[%clk 0:00:04.6]} 37. Kg1 {[%clk
0:01:07]} 37... h6 {[%clk 0:00:03.2]} 38. Re1 {[%clk 0:01:00.2]} 38... Rf3
{[%clk 0:00:03.1]} 39. Qe8+ {[%clk 0:01:00.2]} 39... Kh7 {[%clk 0:00:03.6]} 40.
Qe4+ {[%clk 0:00:54.5]} 40... Qxe4 {[%clk 0:00:03.6]} 41. Rxe4 {[%clk
0:00:55.4]} 41... Rxb3 {[%clk 0:00:04]} 42. Kg2 {[%clk 0:00:55.5]} 42... Rc3
{[%clk 0:00:04.4]} 43. Kf1 {[%clk 0:00:54.6]} 43... Kg6 {[%clk 0:00:04]} 44. Ke2
{[%clk 0:00:53.6]} 44... Kf6 {[%clk 0:00:03.4]} 45. Kd2 {[%clk 0:00:53]} 45...
Ra3 {[%clk 0:00:03.3]} 46. Rf4+ {[%clk 0:00:45.4]} 46... Kg6 {[%clk 0:00:03.2]}
47. c5 {[%clk 0:00:41.2]} 1-0

[Event "*** Titled Tuesday Blitz"]
[Site "Chess.com"]
[Date "2020.04.14"]
[Round "9"]
[White "afgano29"]
[Black "Quiet_Desperation"]
[Result "0-1"]
[WhiteElo "2657"]
[BlackElo "1977"]
[TimeControl "180+1"]
[EndTime "11:43:08 PDT"]
[Termination "Quiet_Desperation won by resignation"]

1. d4 {[%clk 0:03:00.9]} 1... Nf6 {[%clk 0:02:59.8]} 2. c4 {[%clk 0:03:01.5]}
2... e6 {[%clk 0:02:59.6]} 3. Nf3 {[%clk 0:03:01]} 3... Bb4+ {[%clk 0:02:59.2]}
4. Nbd2 {[%clk 0:03:00.3]} 4... b6 {[%clk 0:02:59.2]} 5. g3 {[%clk 0:03:00.1]}
5... O-O {[%clk 0:02:58.1]} 6. Bg2 {[%clk 0:03:00.4]} 6... Bb7 {[%clk
0:02:58.6]} 7. O-O {[%clk 0:03:00.4]} 7... Be7 {[%clk 0:02:59]} 8. Qc2 {[%clk
0:02:59.3]} 8... d5 {[%clk 0:02:59.1]} 9. Ne5 {[%clk 0:02:59.2]} 9... Nbd7
{[%clk 0:02:54.4]} 10. Ndf3 {[%clk 0:02:59.1]} 10... Nxe5 {[%clk 0:02:54.1]} 11.
Nxe5 {[%clk 0:03:00]} 11... Nd7 {[%clk 0:02:51.2]} 12. Bf4 {[%clk 0:02:53.2]}
12... Nxe5 {[%clk 0:02:51.1]} 13. Bxe5 {[%clk 0:02:54.1]} 13... c5 {[%clk
0:02:43.7]} 14. Rfd1 {[%clk 0:02:49.6]} 14... Rc8 {[%clk 0:02:42]} 15. cxd5
{[%clk 0:02:42.2]} 15... Bxd5 {[%clk 0:02:31.9]} 16. e4 {[%clk 0:02:37]} 16...
cxd4 {[%clk 0:02:21.4]} 17. Qa4 {[%clk 0:02:32.7]} 17... Bc6 {[%clk 0:02:19.7]}
18. Qxa7 {[%clk 0:02:19.9]} 18... d3 {[%clk 0:02:17.4]} 19. Qa6 {[%clk
0:02:13.3]} 19... b5 {[%clk 0:02:05.8]} 20. Rac1 {[%clk 0:01:54.3]} 20... Qd7
{[%clk 0:01:57.6]} 21. Rc3 {[%clk 0:01:52.3]} 21... d2 {[%clk 0:01:36.3]} 22.
Bf4 {[%clk 0:01:27]} 22... Bb7 {[%clk 0:01:18.4]} 23. Qb6 {[%clk 0:01:18]} 23...
Rxc3 {[%clk 0:00:56.3]} 24. bxc3 {[%clk 0:01:18.9]} 24... e5 {[%clk 0:00:54.9]}
25. Rxd2 {[%clk 0:01:08.2]} 25... Qc8 {[%clk 0:00:52.8]} 26. Be3 {[%clk
0:01:06.4]} 26... b4 {[%clk 0:00:45.7]} 27. cxb4 {[%clk 0:00:41]} 27... Qc1+
{[%clk 0:00:43.6]} 28. Bf1 {[%clk 0:00:40.1]} 28... Bxe4 {[%clk 0:00:40.6]} 29.
Rd7 {[%clk 0:00:35.1]} 29... Qb1 {[%clk 0:00:35.8]} 30. a3 {[%clk 0:00:23.7]}
30... Bf5 {[%clk 0:00:34.2]} 31. Rd2 {[%clk 0:00:18.2]} 31... h5 {[%clk
0:00:25.1]} 32. Qc7 {[%clk 0:00:17]} 32... Rc8 {[%clk 0:00:16.9]} 33. Qxe5
{[%clk 0:00:07.2]} 33... Bh3 {[%clk 0:00:14.1]} 34. Qb5 {[%clk 0:00:05]} 34...
Rc1 {[%clk 0:00:11.8]} 35. Rd8+ {[%clk 0:00:04.8]} 35... Bxd8 {[%clk 0:00:12.1]}
36. Bxc1 {[%clk 0:00:05.3]} 36... Qxc1 {[%clk 0:00:13]} 37. a4 {[%clk
0:00:03.7]} 37... Be7 {[%clk 0:00:10.5]} 38. a5 {[%clk 0:00:03.7]} 38... Qxf1+
{[%clk 0:00:10.5]} 39. Qxf1 {[%clk 0:00:03.4]} 39... Bxf1 {[%clk 0:00:11.4]} 40.
Kxf1 {[%clk 0:00:01]} 40... Bxb4 {[%clk 0:00:11.8]} 41. Ke2 {[%clk 0:00:01.9]}
41... Bxa5 {[%clk 0:00:11.7]} 0-1

[Event "*** Titled Tuesday Blitz"]
[Site "Chess.com"]
[Date "2020.04.14"]
[Round "9"]
[White "GasconJR"]
[Black "leopato"]
[Result "1-0"]
[WhiteElo "2454"]
[BlackElo "2130"]
[TimeControl "180+1"]
[EndTime "11:43:10 PDT"]
[Termination "GasconJR won on time"]

1. e4 {[%clk 0:03:00.9]} 1... d6 {[%clk 0:02:57.4]} 2. d4 {[%clk 0:03:00.1]}
2... Nf6 {[%clk 0:02:58.3]} 3. Nc3 {[%clk 0:03:00.1]} 3... g6 {[%clk 0:02:56.8]}
4. Bg5 {[%clk 0:02:57.4]} 4... Bg7 {[%clk 0:02:54]} 5. Qd2 {[%clk 0:02:52]} 5...
h6 {[%clk 0:02:49.1]} 6. Bf4 {[%clk 0:02:50]} 6... Nc6 {[%clk 0:02:46]} 7. O-O-O
{[%clk 0:02:46.1]} 7... Nh5 {[%clk 0:02:34.2]} 8. Be3 {[%clk 0:02:41.6]} 8... e5
{[%clk 0:02:32.7]} 9. dxe5 {[%clk 0:02:40.5]} 9... Nxe5 {[%clk 0:02:18.2]} 10.
Be2 {[%clk 0:02:17.7]} 10... Nf6 {[%clk 0:01:56]} 11. Bd4 {[%clk 0:02:17.1]}
11... Qe7 {[%clk 0:01:45.4]} 12. f4 {[%clk 0:02:16.4]} 12... Nc6 {[%clk
0:01:36.9]} 13. Bb5 {[%clk 0:02:08.2]} 13... O-O {[%clk 0:01:35.2]} 14. Bxc6
{[%clk 0:01:57.9]} 14... bxc6 {[%clk 0:01:36.1]} 15. Nf3 {[%clk 0:01:58.4]}
15... Nxe4 {[%clk 0:01:27.9]} 16. Nxe4 {[%clk 0:01:58.1]} 16... Qxe4 {[%clk
0:01:27]} 17. Bxg7 {[%clk 0:01:58.2]} 17... Kxg7 {[%clk 0:01:27.4]} 18. Rhe1
{[%clk 0:01:58.8]} 18... Qc4 {[%clk 0:01:14.6]} 19. b3 {[%clk 0:01:58.7]} 19...
Qc5 {[%clk 0:01:11.3]} 20. Re7 {[%clk 0:01:54]} 20... Bg4 {[%clk 0:00:56]} 21.
Rxc7 {[%clk 0:01:52.1]} 21... Bxf3 {[%clk 0:00:50.6]} 22. gxf3 {[%clk 0:01:53]}
22... d5 {[%clk 0:00:40.2]} 23. f5 {[%clk 0:01:31]} 23... Qd6 {[%clk 0:00:26.6]}
24. Qc3+ {[%clk 0:01:28.8]} 24... Kg8 {[%clk 0:00:20.2]} 25. Rxc6 {[%clk
0:01:27.5]} 25... Qf4+ {[%clk 0:00:19.5]} 26. Kb1 {[%clk 0:01:24.1]} 26... Qxf5
{[%clk 0:00:18.4]} 27. Qf6 {[%clk 0:00:43.5]} 27... Qxf6 {[%clk 0:00:16.8]} 28.
Rxf6 {[%clk 0:00:44.4]} 28... Rfd8 {[%clk 0:00:16.2]} 29. Ra6 {[%clk 0:00:43.6]}
29... Kg7 {[%clk 0:00:15]} 30. Rd4 {[%clk 0:00:43.7]} 30... h5 {[%clk
0:00:14.2]} 31. Ra5 {[%clk 0:00:43.7]} 31... Rac8 {[%clk 0:00:11.1]} 32. Raxd5
{[%clk 0:00:43.4]} 32... Re8 {[%clk 0:00:11.1]} 33. Rd7 {[%clk 0:00:42.7]} 33...
Rc3 {[%clk 0:00:10.3]} 34. Rd3 {[%clk 0:00:42.2]} 34... Rxd3 {[%clk 0:00:09.2]}
35. Rxd3 {[%clk 0:00:39.8]} 35... Re2 {[%clk 0:00:10.1]} 36. c4 {[%clk
0:00:39.7]} 36... Rxh2 {[%clk 0:00:10]} 37. c5 {[%clk 0:00:40.3]} 37... Re2
{[%clk 0:00:10.3]} 38. c6 {[%clk 0:00:40.3]} 38... Re8 {[%clk 0:00:10.3]} 39. b4
{[%clk 0:00:40.5]} 39... Rc8 {[%clk 0:00:10.5]} 40. b5 {[%clk 0:00:40.9]} 40...
a6 {[%clk 0:00:10.2]} 41. a4 {[%clk 0:00:40.6]} 41... axb5 {[%clk 0:00:09]} 42.
axb5 {[%clk 0:00:40.2]} 42... Rb8 {[%clk 0:00:09.6]} 43. Rb3 {[%clk 0:00:38.2]}
43... Kf6 {[%clk 0:00:08.2]} 44. b6 {[%clk 0:00:38.1]} 44... Ke6 {[%clk
0:00:07.2]} 45. c7 {[%clk 0:00:38]} 45... Re8 {[%clk 0:00:06]} 46. b7 {[%clk
0:00:38.3]} 46... Kd7 {[%clk 0:00:06.3]} 47. b8=Q {[%clk 0:00:38.6]} 47... f6
{[%clk 0:00:05.6]} 48. Rd3+ {[%clk 0:00:37.3]} 48... Ke7 {[%clk 0:00:05.2]} 49.
c8=Q {[%clk 0:00:35.2]} 1-0